Cogmind - Beta 16 @@@ ROGUE MODE // 2025.10.23 @ 17:00:22 Player: FloorSandwich Result: Destroyed by G-47 Trooper with Particle Gun Performance ------------- Evolutions (1) 500 Regions Visited (2) 400 Robots Destroyed (33) 165 Value Destroyed (873) 873 Prototype IDs (1) 20 Alien Tech Used (0) 0 Bonus (0) 0 TOTAL SCORE: 1958 Bonus ------- None Cogmind --------- Core Integrity 0/400 Matter 272/300 Energy 138/160 System Corruption 1% Temperature Cool (90) Movement Treading (160) Location -9/Materials Parts ------- > --- POWER (1) -------- Light Nuclear Core > --- PROPULSION (2) --- Light Treads > --- UTILITY (3) ------ Small Storage Unit Transport Network Coupler Improved Targeting Computer > --- WEAPON (3) ------- Small Laser Beam Rifle Autogun > --- INVENTORY (8) ---- Aluminum Leg Medium Matter Pod (100) ECM Suite Light Armor Plating Peak State ------------ > --- POWER ------------ Light Nuclear Core > --- PROPULSION ------- Light Treads > --- UTILITY ---------- Small Storage Unit Transport Network Coupler Improved Targeting Computer > --- WEAPON ----------- Small Laser Beam Rifle Autogun > --- INVENTORY -------- Aluminum Leg Medium Matter Pod ECM Suite Light Armor Plating [Rating: 13] Favorites ----------- Power Ion Engine Engine Ion Engine Power Core Light Nuclear Core Propulsion Aluminum Leg Treads Light Treads Leg Aluminum Leg Wheel Wheel Utility Improved Targeting Computer Storage Small Storage Unit Processor Improved Targeting Computer Weapon Light Assault Rifle Energy Gun Medium Laser Energy Cannon Advanced Beam Cannon Ballistic Gun Light Assault Rifle Ballistic Cannon Light Cannon Launcher Grenade Launcher Build | -11 -10 -9 ------- Run | Yrd Mat Mat Slots Evolved 2 | . . 2 Power . | . . . Propulsion . | . . . Utility 1 | . . 1 Weapon 1 | . . 1 Parts Attached 33 | . 22 11 Power 5 | . 3 2 Engine 3 | . 2 1 Core 2 | . 1 1 Reactor . | . . . Propulsion 12 | . 8 4 Treads 1 | . . 1 Leg 9 | . 6 3 Wheel 2 | . 2 . Hover . | . . . Flight . | . . . Utility 6 | . 5 1 Device . | . . . Storage 4 | . 4 . Processor 2 | . 1 1 Hackware . | . . . Protection . | . . . Artifact . | . . . Weapon 10 | . 6 4 Energy Gun 3 | . 1 2 Energy Cannon 1 | . . 1 Ballistic Gun 4 | . 3 1 Ballistic Cannon 1 | . 1 . Launcher 1 | . 1 . Special Weapon . | . . . Impact Weapon . | . . . Slashing Weapon . | . . . Piercing Weapon . | . . . Special Melee Weapon . | . . . Unidentified Prototypes 1 | . . 1 Parts Lost 7 | . 1 6 Power 1 | . . 1 Propulsion 3 | . . 3 Utility . | . . . Weapon 3 | . 1 2 Highest Loss Streak 2 | . 1 2 To Critical Strikes 1 | . 1 . Average Backups 3 | 3 3 4 Power . | . . . Propulsion 1 | 1 1 1 Utility 1 | . . 2 Weapon 1 | 1 1 . Tool/Special . | . . . Unused Backups 5 | . 2 3 Power . | . . . Propulsion 1 | . . 1 Utility 2 | . . 2 Weapon 2 | . 2 . Tool/Special . | . . . Average Slot Usage (%) 82 | . 85 76 Engine 7 | . 8 6 Core 1 | . 1 1 Leg 18 | . 20 14 Wheel 4 | . 6 . Storage 7 | . 6 11 Processor 16 | . 13 22 Energy Gun 8 | . 12 . Energy Cannon 1 | . . 4 Ballistic Gun 11 | . 12 7 Ballistic Cannon 2 | . 1 4 Launcher 1 | . 1 2 Peak Build Rating 13 | . 9 13 Average Rating 7 | . 7 9 On Entrance 2 | . . 8 Avg Prop Armor Cover (%) . | . . . Naked Turns . | . . . Heaviest Build 89 | . 89 18 Greatest Support 20 | 3 20 20 Greatest Overweight (x) 5 | . 4 5 Average Overweight (x) . | . . . Largest Inventory Capacity 25 | 5 25 8 Average Capacity 6 | 5 5 8 Most Carried 8 | 5 8 8 Average Carried 3 | 3 3 4 Final Capacity 8 | 5 8 8 Final Carried 7 | 5 7 4 Class Distribution -------------------- 86% | Mutant 11% | Scavenger-Gunner Dominant Class ---------------- Mutant | -10/Materials Mutant | -9/Materials Resources | -11 -10 -9 ----------- Run | Yrd Mat Mat Matter Collected 926 | 200 401 325 Remotely . | . . . Salvage Created 1094 | . 682 412 Parts 66 | . 47 19 Haulers Intercepted 1 | . 1 . Recyclers Shooed . | . . . Parts Field Recycled . | . . . Retrieved Matter . | . . . Parts Self-Destructed . | . . . Prevented . | . . . Parts Restored . | . . . Kills | -11 -10 -9 ------- Run | Yrd Mat Mat Combat Hostiles Destroyed 26 | . 18 8 Guns 19 | . 15 4 Cannons 3 | . . 3 AOE 4 | . 3 1 Classes Destroyed 9 | . 6 3 Worker 2 | . 1 1 Tunneler 1 | . 1 . Hauler 1 | . 1 . Recycler 1 | . . 1 Watcher 2 | . 2 . Swarmer 6 | . 6 . Grunt 17 | . 12 5 Duelist 1 | . . 1 Sentry 2 | . . 2 Best Kill Streak 5 | . 5 4 Combat Bots Only 4 | . 4 3 Max Kills in Single Turn 2 | . 2 1 Gunslinging . | . . . Exploded 1 | . 1 1 Melee . | . . . Uniques/NPCs Destroyed . | . . . Combat | -11 -10 -9 -------- Run | Yrd Mat Mat Hostile Shots Fired 216 | . 105 111 Missed 68 | . 27 41 Hits 148 | . 78 70 Melee 11 | . . 11 Projectile 137 | . 78 59 Critical Strikes 11 | . 6 5 Damage Taken 2077 | . 809 1268 Core 573 | . 168 405 Absorbed by Shields . | . . . Core Remaining (%) 66 | 100 32 . Volleys Fired 110 | . 68 42 Largest 3 | . 2 3 Hottest 119 | . 80 119 Shots Fired 181 | . 112 69 Gun 137 | . 98 39 Cannon 36 | . 11 25 Launcher 8 | . 3 5 Special . | . . . Kinetic 110 | . 67 43 Thermal 63 | . 42 21 Explosive 8 | . 3 5 Electromagnetic . | . . . Robot Hit Streak 9 | . 9 6 Robot Miss Streak 4 | . 4 3 Penetration Max . | . . . Secondary Targets 4 | . 4 . Max Gunslinging Chain 1 | . 1 . Shots Hit Robots 108 | . 66 42 Core Hits 63 | . 43 20 Critical Kills . | . . . Critical Parts Destroyed . | . . . Critical Strikes 2 | . 2 . Burn 2 | . 2 . Melee Attacks . | . . . Impact . | . . . Slashing . | . . . Piercing . | . . . Sneak Attacks . | . . . Combat Hostiles . | . . . Follow-up Attacks . | . . . Damage Inflicted 1693 | . 932 761 Guns 948 | . 634 314 Cannons 392 | . 69 323 Explosions 344 | . 225 119 Melee . | . . . Ramming 9 | . 4 5 Kinetic 766 | . 363 403 Thermal 574 | . 340 234 Explosive 344 | . 225 119 Electromagnetic . | . . . Impact . | . . . Slashing . | . . . Piercing . | . . . Highest Corruption 1 | . . 1 Average Corruption 1 | . . 1 Corruption Purged . | . . . Corruption Blocked . | . . . Effects 3 | . . 3 Message Errors 1 | . . 1 Data Loss (minor) 1 | . . 1 Weapon Failures 1 | . . 1 Overload Shots . | . . . Overflow Damage 9 | . . 9 Projectiles 6 | . . 6 Explosions 3 | . . 3 Melee . | . . . Knockbacks 2 | . 1 1 Impact . | . . . Kinetic 2 | . 1 1 Secondary . | . . . Self-Inflicted Damage 106 | . . 106 Shots 3 | . . 3 Rammed 4 | . . 4 Targets Rammed 7 | . 3 4 Kicked 3 | . 3 . Crushed . | . . . Highest Temperature 271 | . 168 271 Average Temperature 71 | . 46 119 Received Heat Transfer 765 | . 402 363 Effects 1 | . . 1 Energy Bleed 1 | . . 1 Siege Activations . | . . . Martial Activations . | . . . Shielding Activations . | . . . Robots Disrupted . | . . . Combat Hostiles . | . . . Robots Corrupted . | . . . Combat Hostiles . | . . . Parts Fried . | . . . Impact Corruptions . | . . . Robots Melted . | . . . Combat Hostiles . | . . . Parts Melted 2 | . 2 . Heat Transferred 1579 | . 1147 432 Parts Sabotaged . | . . . Parts Stolen . | . . . Parts Stripped . | . . . Power Chain Reactions . | . . . Alert | -11 -10 -9 ------- Run | Yrd Mat Mat Maximum Alert Level . | . . . Low Security (%) 100 | 100 100 100 Level 1 . | . . . Level 2 . | . . . Level 3 . | . . . Level 4 . | . . . Level 5 . | . . . High Security . | . . . Max Security . | . . . Peak Influence 199 | . 199 114 Initial 81 | . . 81 Average 89 | . 99 73 Influence Increases 887 | . 571 316 Destroy 0b10 Robot/C 520 | . 360 160 Destroy 0b10 Robot/NC 35 | . 25 10 Destroy Leader 136 | . 86 50 Successful Hack 42 | . 33 9 Disable Machine 15 | . 15 . Destroy Structure 49 | . 22 27 Partial Spotted 15 | . . 15 Lose Combat Pursuer 75 | . 30 45 Influence Decreases 804 | . 376 428 Entered New Map 114 | . . 114 Time Decay 620 | . 366 254 Lost Part 70 | . 10 60 Squads Dispatched 5 | . 4 1 Investigation 2 | . 2 . Extermination . | . . . Reinforcement 3 | . 2 1 Assault . | . . . Garrison . | . . . Intercept . | . . . Searches Triggered . | . . . Construction Impeded . | . . . Haulers Reinforced . | . . . Active Scanning Responses . | . . . Cargo Convoy Interrupts . | . . . Stealth | -11 -10 -9 --------- Run | Yrd Mat Mat Distress Signals 9 | . 4 5 Communications Jammed . | . . . Distress Signals . | . . . Times Spotted 44 | . 26 18 Peak Tracking Total 6 | . 5 6 Tactical Retreats 5 | . 2 3 Traps | -11 -10 -9 ------- Run | Yrd Mat Mat Traps Triggered 1 | . 1 . Indirectly . | . . . Trap Hack Attempts . | . . . Triggered . | . . . Disarmed . | . . . Reprogrammed . | . . . Reused . | . . . Traps Extracted . | . . . Installed . | . . . Triggered . | . . . Machines | -11 -10 -9 ---------- Run | Yrd Mat Mat Machines Disabled 1 | . 1 . Max in Single Turn 1 | . 1 . Machines Repaired . | . . . Machines Dismantled . | . . . Machines Sabotaged . | . . . Overloaded Fab Kills . | . . . Hacking | -11 -10 -9 --------- Run | Yrd Mat Mat Machines Accessed 6 | . 4 2 Terminals 5 | . 3 2 Fabricators . | . . . Repair Stations 1 | . 1 . Recycling Units . | . . . Scanalyzers . | . . . Garrison Access . | . . . Total Hacks 17 | . 12 5 Successful 9 | . 6 3 Failed 8 | . 6 2 Catastrophic 2 | . 2 . Database Lockouts . | . . . Manual . | . . . Terminals 15 | . 10 5 Fabricators . | . . . Repair Stations 2 | . 2 . Recycling Units . | . . . Scanalyzers . | . . . Garrison Access . | . . . Terminal Hacks 8 | . 5 3 Locate Traps 1 | . 1 . Dispatch Records 2 | . 1 1 Transport Status 2 | . 1 1 Assault Status 1 | . 1 . Hauler Manifests 2 | . 1 1 Fabricator Hacks . | . . . Repair Station Hacks 1 | . 1 . Scan Component 1 | . 1 . Recycling Unit Hacks . | . . . Scanalyzer . | . . . Garrison Access Hacks . | . . . Unauthorized Hacks . | . . . Terminals . | . . . Fabricators . | . . . Repair Stations . | . . . Recycling Units . | . . . Scanalyzers . | . . . Garrison Access . | . . . Data Cores Recovered . | . . . Used . | . . . Hacking Detections 4 | . 3 1 Full Trace Events 2 | . 2 . Feedback Events . | . . . Feedback Blocked . | . . . Robot Schematics Acquired . | . . . Robots Built . | . . . Authchips . | . . . Time . | . . . Total Robot Build Rating . | . . . Part Schematics Acquired . | . . . Parts Built . | . . . Authchips . | . . . Time . | . . . Total Part Build Rating . | . . . Part Studies Acquired . | . . . Parts Repaired . | . . . Time . | . . . Parts Recycled . | . . . Recycled Matter . | . . . Retrieved Matter . | . . . Retrieved Components . | . . . Parts Scanalyzed . | . . . Part Schematics Acquired . | . . . Parts Damaged . | . . . Bothacking | -11 -10 -9 ------------ Run | Yrd Mat Mat Used RIF Installer . | . . . Robots Hacked . | . . . Non-combat . | . . . Combat . | . . . Robot Hacks Applied . | . . . Relay Couplers Released . | . . . Fabnet Peak Effective % . | . . . Robots Rewired . | . . . Allies Hacked . | . . . Hacks Repelled . | . . . Allies | -11 -10 -9 -------- Run | Yrd Mat Mat Total Allies . | . . . Largest Group . | . . . Highest-Rated Group . | . . . Highest-Rated Ally . | . . . Total Orders . | . . . Ally Attacks . | . . . Total Damage . | . . . Kills . | . . . Allies Corrupted . | . . . Allies Melted . | . . . Intel | -11 -10 -9 ------- Run | Yrd Mat Mat Active Infowar (turns) 541 | . . 541 T.N.C. 541 | . . 541 Robot Analysis Total . | . . . Derelict Logs Recovered . | . . . Drone Launches . | . . . Drone Recoveries . | . . . Exploration | -11 -10 -9 ------------- Run | Yrd Mat Mat Turns Passed 1850 | 37 1272 541 Spaces Moved 1060 | 64 701 295 Core 101 | 64 . 37 Treads 35 | . . 35 Legs 873 | . 650 223 Wheels 51 | . 51 . Hover . | . . . Flight . | . . . Fastest Speed 50 | 50 80 100 Average Speed 116 | 50 117 126 Slowest Speed 400 | 50 400 300 Overloaded Moves . | . . . Propulsion Burnouts . | . . . Robots Hopped . | . . . Potential Cave-ins . | . . . Cave-ins Triggered . | . . . Exploration Rate (%) 30 | 3 57 32 Regions Visited 2 Branch Regions . Pre-discovered Areas . | . . . Known Exits Taken . | . . . Unknown Exits Taken 2 | 1 1 . Scrap Searched . | . . . Spaces Dug . | . . . Terrain Destroyed 61 | . 21 40 Melee . | . . . Projectile . | . . . AOE 61 | . 21 40 Terrain Rammed . | . . . Walls Destroyed . | . . . Machines Disabled . | . . . Actions | -11 -10 -9 --------- Run | Yrd Mat Mat Total 1525 | 68 1054 403 Wait 253 | . 218 35 Move 1058 | 63 700 295 Hop . | . . . Pick Up 36 | 5 21 10 Fast Attach 2 | . 2 . Attach 22 | . 12 10 Detach 2 | . 2 . Swap 14 | . 11 3 Drop 21 | . 17 4 Fire 110 | . 68 42 Melee . | . . . Ram 4 | . . 4 Kick 3 | . 3 . Crush . | . . . Escape Stasis . | . . . Rewire . | . . . Trap . | . . . Miscellaneous . | . . . Route ------- -11/Scrapyard -10/Materials (discovered 4 exits: *Mat x2 / [*Min x2]) -9/Materials History --------- Turn | Location | Event 8 | -11/Scrapyard | Discovered new exit (range 16) 38 | -11/Scrapyard | Entered Materials 315 | -10/Materials | Build established: Mutant 442 | -10/Materials | Discovered new exit (range 8) 522 | -10/Materials | Discovered new exit (range 16) 804 | -10/Materials | Discovered new exit (range 13) 963 | -10/Materials | Core integrity fell below 50% 979 | -10/Materials | Discovered new exit (range 7) 1310 | -10/Materials | Entered another Materials area 1310 | -9/Materials | Evolved 2 slots: Utility x1, Weapon x1 1709 | -9/Materials | Core integrity fell below 50% 1738 | -9/Materials | Core integrity fell below 20% 1851 | -9/Materials | Destroyed by G-47 Trooper with Particle Gun Last Messages --------------- U-05 Engineer lays Concrete. U-05 Engineer builds a Wall. U-05 Engineer lays Concrete. U-05 Engineer builds a Door. U-05 Engineer lays Concrete. W-16 Scout sends out distress signal. U-05 Engineer lays Concrete. U-05 Engineer builds a Wall. U-05 Engineer lays Concrete. G-34 Mercenary destroyed. Acquired 32 matter. Acquired Sml. Laser. R-06 Scavenger collects Aluminum Leg. R-06 Scavenger destroyed. Acquired 38 matter. W-16 Scout sends out distress signal. Acquired Aluminum Leg. U-05 Engineer builds a Wall. I 0|0&0NMARB#CLPU7|&W Critical hit (Burn: +37). Map ----- +----------------------------------------------------+ | ????????????????### " #?? | | ??????????######### "" #?? | | ?????????? ### | | ?????????? | | ?????????? """ """ | | ?????????? """ """ | | ??????????# "" """ / ### | | ??????????# #?????# ##?? | | ?????######+####??# #??? | | ????## #??# """ #??? | | ????#" #??# """ #??? | | ????#" #### """ #??? | | ????#" %# # | | ???##" !! / + | | ???# " ! %# #??? | | ???##" * # ###+###########??? | | ???# " # ## #????????? | | ???######/###"## ## #????????? | | ??###"# #### ## #????????? | | ??#** ## """ #????????? | | ??# * ## """ #????????? | | ??#** ## """ #????????? | | ??#** ################????????? | | ??#!! ## **##???????????????????????? | | ??#!! ## %#########????????????????? | | ??###### !#@T #????????????????? | | ???????# g! #????????????????? | | ???????# # #????????????????? | | ???????# #########????????????????? | | ???????# #????????????????????????? | | ???????#a #????????????????????????? | | ???????# #????????????????????????? | | ???????# #????????????????????????? | | ???????+ +????????????????????????? | | ???????# #????????????????????????? | | ???????# #????????????????????????? | | ???????# #????????????????????????? | | ???????# #????????????????????????? | | ???????# #????????????????????????? | | ???????# #????????????????????????? | | ???????+ #????????????????????????? | | ???????# ?????????????????????????? | | ???????? ?????????????????????????? | | ????????????????????????????????????? | | ????????????????????????????????????? | | ????????????????????????????????????? | | ????????????????????????????????????? | | ????????????????????????????????????? | | ????????????????????????????????????? | | ????????????????????????????????????? | +----------------------------------------------------+ Best States ------------- Heat Dissipation 28 Energy Generation 14 Energy Capacity 250 Matter Stores 372 Matter Capacity 400 Sight Range 16 Terrain Scan Density 10 Evasion (%) 55 Targeting Accuracy 6 Recoil Reduction 1 Item Schematics ----------------- None Robot Schematics ------------------ None Fabricated ------------ Nothing Repaired ---------- Nothing Studied --------- None Alien Tech Used ----------------- None Achievements -------------- Ghost 'Em Challenges ------------ None Game ------ Seed PulseZeronetExtractor Manual? 0 Play Time 00:15:42 Cumulative 11.4 hours Start 2025.10.23 @ 16:44:47 End 2025.10.23 @ 17:00:22 Sessions 1 Manual Loads 0 Difficulty Rogue Special Mode None Game No. 42 Rogue 42 Adventurer 0 Explorer 0 Win Type - Total 0 Types 0/0/0/0/0/0/0/0/0/0 Lore% 6 Gallery% 14 Achievement% 9 Wizard Run 0 Options --------- Layout 1 ASCII 0 Keyboard 0 Movement Arrows Keybinds 0 Fullscreen 1 Font 24/Smallcaps Map View 50x35 Zoom Use 0% Tactical HUD 0 Map Filters NONE Filters NONE Steam 1 RUN: f8f6e6bd-eea7-4f2b-ac5a-f5b245a73331